[Event "Dutch Internet Championship Final"]
[Site "playchess.com #038132"]
[Date "2011.06.18"]
[Round "1.4"]
[White "Reinderman"]
[Black "Zgorl"]
[Result "1-0"]
[ECO "A29"]
[WhiteElo "2486"]
[BlackElo "2466"]
[PlyCount "69"]
[EventDate "2011.06.18"]
[EventType "match (blitz)"]
[TimeControl "180+3"]

1. c4 {[%emt 0:00:01]} e5 {[%emt 0:00:06]} 2. Nc3 {[%emt 0:00:01]} Nf6 {[%emt
0:00:01]} 3. Nf3 {[%emt 0:00:01]} Nc6 {[%emt 0:00:01]} 4. g3 {[%emt 0:00:01]}
Bb4 {[%emt 0:00:03]} 5. Bg2 {[%emt 0:00:01]} O-O {[%emt 0:00:01]} 6. Nd5 {
[%emt 0:00:01]} Bc5 {[%emt 0:00:07]} 7. O-O {[%emt 0:00:02]} Re8 {[%emt 0:00:
04]} 8. e3 {[%emt 0:00:01]} a6 {[%emt 0:00:02]} 9. d4 {[%emt 0:00:06]} Ba7 {
[%emt 0:00:08]} 10. Nxf6+ {[%emt 0:00:02]} Qxf6 {[%emt 0:00:01]} 11. d5 {[%emt
0:00:01]} Ne7 {[%emt 0:00:04]} 12. e4 {[%emt 0:00:01]} d6 {[%emt 0:00:03]} 13.
h3 {[%emt 0:00:09]} c6 {[%emt 0:00:04]} 14. Kh2 {[%emt 0:00:08]} h6 {[%emt 0:
00:05]} 15. Ne1 {[%emt 0:00:18]} cxd5 {[%emt 0:00:04]} 16. cxd5 {[%emt 0:00:01]
} Bd7 {[%emt 0:00:07]} 17. Nd3 {[%emt 0:00:01]} Bb5 {[%emt 0:00:07]} 18. a4 {
[%emt 0:00:03]} Bxd3 {[%emt 0:00:08]} 19. Qxd3 {[%emt 0:00:01]} Ng6 {[%emt 0:
00:17]} 20. Bd2 {[%emt 0:00:13]} Bd4 {[%emt 0:00:24]} 21. Rab1 {[%emt 0:00:07]}
Rec8 {[%emt 0:00:03]} 22. h4 {[%emt 0:00:04]} Qd8 {[%emt 0:00:27]} 23. Bh3 {
[%emt 0:00:13]} Rc7 {[%emt 0:00:07]} 24. Ba5 {[%emt 0:00:32]} b6 {[%emt 0:00:
01]} 25. Bc3 {[%emt 0:00:01]} Bxc3 {[%emt 0:00:11]} 26. bxc3 {[%emt 0:00:01]}
Rc5 {[%emt 0:00:02]} 27. Rb3 {[%emt 0:00:01]} Qc7 {[%emt 0:00:10]} 28. Rfb1 {
[%emt 0:00:02]} Nf8 {[%emt 0:00:13]} 29. Rxb6 {[%emt 0:00:14]} Rxc3 {[%emt 0:
00:03]} 30. Qf1 {[%emt 0:00:09]} Rc2 {[%emt 0:00:08]} 31. Kg1 {[%emt 0:00:06]}
Rc4 {[%emt 0:00:31]} 32. R6b4 {[%emt 0:00:04]} Rxb4 {[%emt 0:00:12]} 33. Rxb4 {
[%emt 0:00:01]} Qa5 {[%emt 0:00:10]} 34. Qc4 {[%emt 0:00:07]} Nh7 {[%emt 0:00:
14]} 35. Bd7 {[%emt 0:00:17] Reinderman claims flag (automatic).  (Lag: Av=0.
29s, max=2.1s)} 1-0

[Event "Dutch Internet Championship Final"]
[Site "playchess.com #038132"]
[Date "2011.06.18"]
[Round "1.1"]
[White "kingloek"]
[Black "Snorrebaard"]
[Result "1-0"]
[ECO "E97"]
[WhiteElo "2907"]
[BlackElo "1855"]
[PlyCount "41"]
[EventDate "2011.06.18"]
[EventType "match (blitz)"]
[TimeControl "180+3"]

1. d4 {[%emt 0:00:02]} d6 {[%emt 0:00:01]} 2. Nf3 {[%emt 0:00:02]} g6 {[%emt 0:
00:01]} 3. c4 {[%emt 0:00:01]} Bg7 {[%emt 0:00:01]} 4. e4 {[%emt 0:00:02]} Nf6
{[%emt 0:00:03]} 5. Nc3 {[%emt 0:00:02]} O-O {[%emt 0:00:01]} 6. Be2 {[%emt 0:
00:01]} e5 {[%emt 0:00:01]} 7. O-O {[%emt 0:00:01]} Nc6 {[%emt 0:00:01]} 8. d5
{[%emt 0:00:01]} Ne7 {[%emt 0:00:00]} 9. b4 {[%emt 0:00:01]} Nh5 {[%emt 0:00:
10]} 10. g3 {[%emt 0:00:02]} Bh3 {[%emt 0:00:42]} 11. Re1 {[%emt 0:00:03]} f5 {
[%emt 0:00:02]} 12. Ng5 {[%emt 0:00:03]} Bg4 {[%emt 0:00:19]} 13. f3 {[%emt 0:
00:11]} Qd7 {[%emt 0:01:09]} 14. fxg4 {[%emt 0:00:04]} Nf6 {[%emt 0:00:01]} 15.
gxf5 {[%emt 0:00:11]} gxf5 {[%emt 0:00:01]} 16. Ne6 {[%emt 0:00:01]} Rf7 {
[%emt 0:00:05]} 17. Rf1 {[%emt 0:00:14]} Nxe4 {[%emt 0:00:17]} 18. Nxe4 {[%emt
0:00:05]} fxe4 {[%emt 0:00:00]} 19. Rxf7 {[%emt 0:00:02]} Kxf7 {[%emt 0:00:00]}
20. Bg4 {[%emt 0:00:04]} h5 {[%emt 0:00:34]} 21. Ng5+ {[%emt 0:00:03]
Snorrebaard resigns  (Lag: Av=0.46s, max=1.2s)} 1-0

[Event "Dutch Internet Championship Final"]
[Site "playchess.com #038132"]
[Date "2011.06.18"]
[Round "1.1"]
[White "Jan Smeets"]
[Black "Bolwerk"]
[Result "1-0"]
[ECO "B42"]
[WhiteElo "2844"]
[BlackElo "2281"]
[PlyCount "135"]
[EventDate "2011.06.18"]
[EventType "match (blitz)"]
[TimeControl "180+3"]

1. e4 {[%emt 0:00:02]} c5 {[%emt 0:00:01]} 2. Nf3 {[%emt 0:00:01]} e6 {[%emt 0:
00:01]} 3. d4 {[%emt 0:00:01]} cxd4 {[%emt 0:00:01]} 4. Nxd4 {[%emt 0:00:00]}
a6 {[%emt 0:00:00]} 5. Bd3 {[%emt 0:00:02]} Nf6 {[%emt 0:00:01]} 6. c4 {[%emt
0:00:02]} Qc7 {[%emt 0:00:02]} 7. O-O {[%emt 0:00:03]} d6 {[%emt 0:00:01]} 8.
Nc3 {[%emt 0:00:02]} g6 {[%emt 0:00:01]} 9. Be3 {[%emt 0:00:07]} Bg7 {[%emt 0:
00:01]} 10. Rc1 {[%emt 0:00:02]} Nbd7 {[%emt 0:00:01]} 11. b3 {[%emt 0:00:03]}
O-O {[%emt 0:00:02]} 12. Qe2 {[%emt 0:00:01]} b6 {[%emt 0:00:01]} 13. Rfd1 {
[%emt 0:00:02]} Bb7 {[%emt 0:00:01]} 14. f3 {[%emt 0:00:03]} Rfd8 {[%emt 0:00:
01]} 15. Qf2 {[%emt 0:00:02]} Rab8 {[%emt 0:00:01]} 16. Bf1 {[%emt 0:00:01]}
Ba8 {[%emt 0:00:01]} 17. Kh1 {[%emt 0:00:27]} Bf8 {[%emt 0:00:01]} 18. Bg5 {
[%emt 0:00:04]} Bg7 {[%emt 0:00:01]} 19. Qh4 {[%emt 0:00:02]} Re8 {[%emt 0:00:
04]} 20. Bh6 {[%emt 0:00:04]} Bh8 {[%emt 0:00:01]} 21. Qg3 {[%emt 0:00:04]} Ne5
{[%emt 0:00:07]} 22. a4 {[%emt 0:00:12]} Red8 {[%emt 0:00:17]} 23. Nde2 {[%emt
0:00:18]} Ned7 {[%emt 0:00:13]} 24. Qxd6 {[%emt 0:00:11]} Qxd6 {[%emt 0:00:05]}
25. Rxd6 {[%emt 0:00:02]} Nc5 {[%emt 0:00:01]} 26. Rxd8+ {[%emt 0:00:02]} Rxd8
{[%emt 0:00:01]} 27. Rb1 {[%emt 0:00:30]} Rd3 {[%emt 0:00:10]} 28. b4 {[%emt 0:
00:03]} Ncd7 {[%emt 0:00:09]} 29. Rd1 {[%emt 0:00:02]} Ne5 {[%emt 0:00:09]} 30.
Rxd3 {[%emt 0:00:24]} Nxd3 {[%emt 0:00:01]} 31. Na2 {[%emt 0:00:07]} Nd7 {
[%emt 0:00:20]} 32. Be3 {[%emt 0:00:05]} f5 {[%emt 0:00:12]} 33. exf5 {[%emt 0:
00:03]} exf5 {[%emt 0:00:05]} 34. Kg1 {[%emt 0:00:11]} Bf6 {[%emt 0:00:12]} 35.
Bd4 {[%emt 0:00:47]} Be7 {[%emt 0:00:04]} 36. Bc3 {[%emt 0:00:04]} a5 {[%emt 0:
00:55] '} 37. bxa5 {[%emt 0:00:06]} bxa5 {[%emt 0:00:01]} 38. Nd4 {[%emt 0:00:
06]} Nb4 {[%emt 0:00:04]} 39. Nxb4 {[%emt 0:00:12]} axb4 {[%emt 0:00:03]} 40.
Ba1 {[%emt 0:00:02]} Bc5 {[%emt 0:00:08]} 41. Kf2 {[%emt 0:00:02]} Ne5 {[%emt
0:00:13]} 42. Ke1 {[%emt 0:00:13]} Nd7 {[%emt 0:00:11]} 43. a5 {[%emt 0:00:02]}
Bb7 {[%emt 0:00:06]} 44. Kd2 {[%emt 0:00:02]} Ba6 {[%emt 0:00:04]} 45. Nb3 {
[%emt 0:00:03]} Bg1 {[%emt 0:00:02]} 46. h3 {[%emt 0:00:03]} Nb8 {[%emt 0:00:
16]} 47. Bd3 {[%emt 0:00:06]} Nc6 {[%emt 0:00:01]} 48. c5 {[%emt 0:00:01]} Bb7
{[%emt 0:00:20]} 49. a6 {[%emt 0:00:02]} Ba8 {[%emt 0:00:00]} 50. Bc4+ {[%emt
0:00:01]} Kf8 {[%emt 0:00:02]} 51. Kd3 {[%emt 0:00:09]} Ke7 {[%emt 0:00:06]}
52. Bb2 {[%emt 0:00:04]} g5 {[%emt 0:00:03]} 53. Bb5 {[%emt 0:00:02]} f4 {
[%emt 0:00:03]} 54. Kc4 {[%emt 0:00:01]} h5 {[%emt 0:00:13]} 55. Bxc6 {[%emt 0:
00:05]} Bxc6 {[%emt 0:00:02]} 56. Bd4 {[%emt 0:00:02]} Bh2 {[%emt 0:00:09]} 57.
Na5 {[%emt 0:00:04]} Ba8 {[%emt 0:00:01]} 58. Kxb4 {[%emt 0:00:01]} Kf7 {[%emt
0:00:04]} 59. c6 {[%emt 0:00:01]} Ke6 {[%emt 0:00:02]} 60. Kb5 {[%emt 0:00:02]}
Kd6 {[%emt 0:00:03]} 61. Nb7+ {[%emt 0:00:01]} Kc7 {[%emt 0:00:03]} 62. Be5+ {
[%emt 0:00:02]} Kc8 {[%emt 0:00:00]} 63. Bd4 {[%emt 0:00:02]} g4 {[%emt 0:00:
03]} 64. hxg4 {[%emt 0:00:01]} hxg4 {[%emt 0:00:01]} 65. fxg4 {[%emt 0:00:01]}
f3 {[%emt 0:00:00]} 66. gxf3 {[%emt 0:00:01]} Bf4 {[%emt 0:00:02]} 67. Bb6 {
[%emt 0:00:02]} Bg5 {[%emt 0:00:03]} 68. Nd6+ {[%emt 0:00:03] Bolwerk geeft op
(Lag: Av=0.23s, max=0.7s)} 1-0

[Event "Dutch Internet Championship Final"]
[Site "playchess.com #038132"]
[Date "2011.06.18"]
[Round "1.1"]
[White "Ivan Sokolov"]
[Black "MIGUOELA"]
[Result "1-0"]
[ECO "E51"]
[WhiteElo "2167"]
[BlackElo "2365"]
[PlyCount "67"]
[EventDate "2011.06.18"]
[EventType "match (blitz)"]
[TimeControl "180+3"]

1. d4 {[%emt 0:00:03]} Nf6 {[%emt 0:00:02]} 2. c4 {[%emt 0:00:01]} e6 {[%emt 0:
00:01]} 3. Nc3 {[%emt 0:00:02]} Bb4 {[%emt 0:00:02]} 4. e3 {[%emt 0:00:01]} d5
{[%emt 0:00:07]} 5. a3 {[%emt 0:00:03]} Be7 {[%emt 0:00:04]} 6. Nf3 {[%emt 0:
00:03]} O-O {[%emt 0:00:03]} 7. b4 {[%emt 0:00:02]} c6 {[%emt 0:00:09]} 8. Bd3
{[%emt 0:00:07]} Nbd7 {[%emt 0:00:04]} 9. O-O {[%emt 0:00:03]} b6 {[%emt 0:00:
08]} 10. Qc2 {[%emt 0:00:06]} dxc4 {[%emt 0:00:09]} 11. Bxc4 {[%emt 0:00:02]}
c5 {[%emt 0:00:02]} 12. dxc5 {[%emt 0:00:10]} bxc5 {[%emt 0:00:00]} 13. b5 {
[%emt 0:00:01]} Bb7 {[%emt 0:00:04]} 14. Rd1 {[%emt 0:00:03]} Qc7 {[%emt 0:00:
06]} 15. e4 {[%emt 0:00:02]} Nb6 {[%emt 0:00:38]} 16. Be2 {[%emt 0:00:03]} Rfd8
{[%emt 0:00:05]} 17. Bg5 {[%emt 0:00:07]} Rxd1+ {[%emt 0:00:14]} 18. Rxd1 {
[%emt 0:00:03]} Rd8 {[%emt 0:00:02]} 19. Rxd8+ {[%emt 0:00:05]} Qxd8 {[%emt 0:
00:00]} 20. a4 {[%emt 0:00:07]} h6 {[%emt 0:00:04]} 21. Bh4 {[%emt 0:00:04]}
Nbd7 {[%emt 0:00:27]} 22. Nd2 {[%emt 0:00:05]} Ne5 {[%emt 0:00:10]} 23. Bg3 {
[%emt 0:00:03]} Ng6 {[%emt 0:00:10]} 24. h3 {[%emt 0:00:31]} Qd4 {[%emt 0:00:
04]} 25. Qd3 {[%emt 0:00:26]} h5 {[%emt 0:00:21]} 26. Bb8 {[%emt 0:00:11]} Ne5
{[%emt 0:00:18]} 27. Qxd4 {[%emt 0:00:05]} cxd4 {[%emt 0:00:01]} 28. Bxe5 {
[%emt 0:00:06]} dxc3 {[%emt 0:00:01]} 29. Bxc3 {[%emt 0:00:02]} Nxe4 {[%emt 0:
00:03]} 30. Nxe4 {[%emt 0:00:01]} Bxe4 {[%emt 0:00:00]} 31. Bd4 {[%emt 0:00:01]
} Bc2 {[%emt 0:00:08]} 32. a5 {[%emt 0:00:05]} Bd8 {[%emt 0:00:23]} 33. a6 {
[%emt 0:00:08]} Bd1 {[%emt 0:00:21]} 34. Bxd1 {[%emt 0:00:04] MIGUOELA geeft
op  (Lag: Av=0.28s, max=0.6s)} 1-0

[Event "Dutch Internet Championship Final"]
[Site "playchess.com #038132"]
[Date "2011.06.18"]
[Round "1.1"]
[White "Erikerik"]
[Black "Time To Pretend"]
[Result "1-0"]
[ECO "B50"]
[WhiteElo "2627"]
[BlackElo "2519"]
[PlyCount "99"]
[EventDate "2011.06.18"]
[EventType "match (blitz)"]
[TimeControl "180+3"]

1. e4 {[%emt 0:00:03]} c5 {[%emt 0:00:01]} 2. Nf3 {[%emt 0:00:01]} d6 {[%emt 0:
00:01]} 3. c3 {[%emt 0:00:01]} Nf6 {[%emt 0:00:02]} 4. Be2 {[%emt 0:00:01]}
Nbd7 {[%emt 0:00:04]} 5. d3 {[%emt 0:00:02]} g6 {[%emt 0:00:01]} 6. O-O {[%emt
0:00:01]} Bg7 {[%emt 0:00:00]} 7. Nbd2 {[%emt 0:00:04]} O-O {[%emt 0:00:01]} 8.
Re1 {[%emt 0:00:06]} b6 {[%emt 0:00:02]} 9. d4 {[%emt 0:00:04]} Bb7 {[%emt 0:
00:07]} 10. Bf1 {[%emt 0:00:18]} e5 {[%emt 0:00:06]} 11. d5 {[%emt 0:00:19]} h6
{[%emt 0:00:04]} 12. a4 {[%emt 0:00:02]} a6 {[%emt 0:00:03]} 13. Nc4 {[%emt 0:
00:14]} Qc7 {[%emt 0:00:04]} 14. Rb1 {[%emt 0:00:21]} Rfb8 {[%emt 0:00:26]} 15.
b4 {[%emt 0:00:23]} b5 {[%emt 0:00:10]} 16. axb5 {[%emt 0:00:08]} axb5 {[%emt
0:00:01]} 17. Na3 {[%emt 0:00:10]} Ba6 {[%emt 0:00:21]} 18. g3 {[%emt 0:00:15]}
c4 {[%emt 0:00:02]} 19. Bh3 {[%emt 0:00:07]} Bc8 {[%emt 0:00:04]} 20. Ra1 {
[%emt 0:00:07]} Ra7 {[%emt 0:00:13]} 21. Be3 {[%emt 0:00:21]} Ra6 {[%emt 0:00:
03]} 22. Nd2 {[%emt 0:00:02]} Qb7 {[%emt 0:00:15]} 23. Qf3 {[%emt 0:00:09]}
Rba8 {[%emt 0:00:03]} 24. Ndb1 {[%emt 0:00:01]} g5 {[%emt 0:00:24]} 25. Bf5 {
[%emt 0:00:04]} Nf8 {[%emt 0:00:01]} 26. h3 {[%emt 0:00:13]} Bxf5 {[%emt 0:00:
04]} 27. Qxf5 {[%emt 0:00:02]} Qd7 {[%emt 0:00:02]} 28. Qxd7 {[%emt 0:00:05]}
N8xd7 {[%emt 0:00:01]} 29. f3 {[%emt 0:00:02]} Nh5 {[%emt 0:00:09]} 30. Kg2 {
[%emt 0:00:02]} Kh7 {[%emt 0:00:13]} 31. Ra2 {[%emt 0:00:02]} Kg6 {[%emt 0:00:
02]} 32. Bc1 {[%emt 0:00:09]} Nhf6 {[%emt 0:00:08]} 33. Rae2 {[%emt 0:00:03]}
Rb8 {[%emt 0:00:02]} 34. g4 {[%emt 0:00:04]} h5 {[%emt 0:00:03]} 35. Nd2 {
[%emt 0:00:02]} Rab6 {[%emt 0:00:17]} 36. Nf1 {[%emt 0:00:02]} hxg4 {[%emt 0:
00:01]} 37. hxg4 {[%emt 0:00:03]} Rh8 {[%emt 0:00:02]} 38. Ng3 {[%emt 0:00:02]}
Ng8 {[%emt 0:00:13]} 39. Nf5 {[%emt 0:00:03]} Bf8 {[%emt 0:00:09]} 40. Be3 {
[%emt 0:00:03]} Rb7 {[%emt 0:00:03]} 41. Ra2 {[%emt 0:00:02]} Nh6 {[%emt 0:00:
06]} 42. Rh1 {[%emt 0:00:02]} Bg7 {[%emt 0:00:10]} 43. Nxd6 {[%emt 0:00:04]}
Rbb8 {[%emt 0:00:03]} 44. Naxb5 {[%emt 0:00:02]} Rhd8 {[%emt 0:00:13]} 45. Ra6
{[%emt 0:00:02]} f6 {[%emt 0:00:01]} 46. Nc7 {[%emt 0:00:07]} Nf7 {[%emt 0:00:
04]} 47. Nxf7 {[%emt 0:00:09]} Kxf7 {[%emt 0:00:01]} 48. Ne6 {[%emt 0:00:01]}
Rg8 {[%emt 0:00:01]} 49. Ra7 {[%emt 0:00:03]} Ke8 {[%emt 0:00:05]} 50. Rh7 {
[%emt 0:00:02] Time To Pretend resigns  (Lag: Av=0.22s, max=0.9s)} 1-0

[Event "Dutch Internet Championship Final"]
[Site "playchess.com #038132"]
[Date "2011.06.18"]
[Round "1.1"]
[White "Daanbrandenburg"]
[Black "Enschede"]
[Result "1-0"]
[ECO "B22"]
[WhiteElo "2691"]
[BlackElo "2480"]
[PlyCount "151"]
[EventDate "2011.06.18"]
[EventType "match (blitz)"]
[TimeControl "180+3"]

1. e4 {[%emt 0:00:01]} c5 {[%emt 0:00:01]} 2. c3 {[%emt 0:00:01]} Nf6 {[%emt 0:
00:01]} 3. e5 {[%emt 0:00:01]} Nd5 {[%emt 0:00:00]} 4. Nf3 {[%emt 0:00:00]} g6
{[%emt 0:00:01]} 5. d4 {[%emt 0:00:08]} cxd4 {[%emt 0:00:01]} 6. Qxd4 {[%emt 0:
00:02]} Nc7 {[%emt 0:00:01]} 7. Qh4 {[%emt 0:00:06]} Nc6 {[%emt 0:00:05]} 8.
Bh6 {[%emt 0:00:06]} Bxh6 {[%emt 0:00:11]} 9. Qxh6 {[%emt 0:00:01]} Ne6 {[%emt
0:00:00]} 10. Bc4 {[%emt 0:00:10]} Qc7 {[%emt 0:00:11]} 11. Bxe6 {[%emt 0:00:
03]} dxe6 {[%emt 0:00:05]} 12. Qg7 {[%emt 0:00:02]} Rf8 {[%emt 0:00:01]} 13.
O-O {[%emt 0:00:28]} Bd7 {[%emt 0:00:07]} 14. Re1 {[%emt 0:00:04]} O-O-O {
[%emt 0:00:19]} 15. Nbd2 {[%emt 0:00:01]} h6 {[%emt 0:00:13]} 16. Qxh6 {[%emt
0:00:11]} Rh8 {[%emt 0:00:06]} 17. Qe3 {[%emt 0:00:02]} Rh5 {[%emt 0:00:05]}
18. Nf1 {[%emt 0:00:11]} Rdh8 {[%emt 0:00:16]} 19. Ng3 {[%emt 0:00:03]} R5h6 {
[%emt 0:00:04]} 20. h3 {[%emt 0:00:05]} Qb6 {[%emt 0:00:24]} 21. Qxb6 {[%emt 0:
00:16]} axb6 {[%emt 0:00:00]} 22. Ng5 {[%emt 0:00:11]} Rf8 {[%emt 0:00:07]} 23.
Rad1 {[%emt 0:00:04]} Nb8 {[%emt 0:00:08]} 24. b3 {[%emt 0:00:09]} Bc6 {[%emt
0:00:04]} 25. Rd4 {[%emt 0:00:04]} Nd7 {[%emt 0:00:05]} 26. Rf4 {[%emt 0:00:05]
} f6 {[%emt 0:00:15]} 27. Nxe6 {[%emt 0:00:08]} Re8 {[%emt 0:00:01]} 28. exf6 {
[%emt 0:00:37]} exf6 {[%emt 0:00:02]} 29. Re3 {[%emt 0:00:04]} f5 {[%emt 0:00:
13]} 30. Nd4 {[%emt 0:00:24]} Rxe3 {[%emt 0:00:01]} 31. fxe3 {[%emt 0:00:00]}
Bd5 {[%emt 0:00:01]} 32. c4 {[%emt 0:00:02]} Bg8 {[%emt 0:00:08]} 33. e4 {
[%emt 0:00:01]} fxe4 {[%emt 0:00:07]} 34. Nxe4 {[%emt 0:00:00]} Rh7 {[%emt 0:
00:11]} 35. Nb5 {[%emt 0:00:04]} Re7 {[%emt 0:00:08]} 36. Nf6 {[%emt 0:00:05]}
Be6 {[%emt 0:00:18]} 37. Nxd7 {[%emt 0:00:09]} Kxd7 {[%emt 0:00:03]} 38. Rd4+ {
[%emt 0:00:06]} Kc8 {[%emt 0:00:04]} 39. Re4 {[%emt 0:00:00]} Kd7 {[%emt 0:00:
08]} 40. Nd4 {[%emt 0:00:04]} Bf7 {[%emt 0:00:01]} 41. Rxe7+ {[%emt 0:00:01]}
Kxe7 {[%emt 0:00:00]} 42. Kf2 {[%emt 0:00:01]} Kd6 {[%emt 0:00:03]} 43. Ke3 {
[%emt 0:00:02]} Kc5 {[%emt 0:00:01]} 44. Nc2 {[%emt 0:00:04]} g5 {[%emt 0:00:
05]} 45. Kd3 {[%emt 0:00:05]} b5 {[%emt 0:00:03]} 46. b4+ {[%emt 0:00:08]} Kd6
{[%emt 0:00:04]} 47. c5+ {[%emt 0:00:02]} Ke5 {[%emt 0:00:03]} 48. a3 {[%emt 0:
00:17]} Kf4 {[%emt 0:00:05]} 49. Ne3 {[%emt 0:00:08]} Ke5 {[%emt 0:00:10]} 50.
g3 {[%emt 0:00:05]} Bg6+ {[%emt 0:00:01]} 51. Kd2 {[%emt 0:00:02]} Ke4 {[%emt
0:00:03]} 52. h4 {[%emt 0:00:00]} gxh4 {[%emt 0:00:30]} 53. gxh4 {[%emt 0:00:
00]} Kf4 {[%emt 0:00:01]} 54. Nd5+ {[%emt 0:00:01]} Kg4 {[%emt 0:00:05]} 55.
Nc7 {[%emt 0:00:00]} Kxh4 {[%emt 0:00:03]} 56. Nxb5 {[%emt 0:00:01]} Bf7 {
[%emt 0:00:06]} 57. Nd6 {[%emt 0:00:01]} Bd5 {[%emt 0:00:01]} 58. Ke3 {[%emt 0:
00:01]} Kg5 {[%emt 0:00:01]} 59. Kd4 {[%emt 0:00:00]} Bh1 {[%emt 0:00:01]} 60.
Ke5 {[%emt 0:00:05]} Bf3 {[%emt 0:00:05]} 61. b5 {[%emt 0:00:02]} Kg6 {[%emt 0:
00:02]} 62. Ke6 {[%emt 0:00:02]} Bg4+ {[%emt 0:00:01]} 63. Ke7 {[%emt 0:00:02]}
Bf3 {[%emt 0:00:00]} 64. Kd7 {[%emt 0:00:02]} Kf6 {[%emt 0:00:01]} 65. Kc7 {
[%emt 0:00:01]} Ke5 {[%emt 0:00:01]} 66. Nxb7 {[%emt 0:00:01]} Kd4 {[%emt 0:00:
01]} 67. c6 {[%emt 0:00:01]} Kc4 {[%emt 0:00:00]} 68. Nd6+ {[%emt 0:00:01]} Kc5
{[%emt 0:00:01]} 69. b6 {[%emt 0:00:00]} Bxc6 {[%emt 0:00:01]} 70. a4 {[%emt 0:
00:14]} Bh1 {[%emt 0:00:07]} 71. b7 {[%emt 0:00:15]} Bxb7 {[%emt 0:00:02]} 72.
Nxb7+ {[%emt 0:00:00]} Kb4 {[%emt 0:00:02]} 73. a5 {[%emt 0:00:00]} Kb5 {[%emt
0:00:00]} 74. Kb8 {[%emt 0:00:02]} Ka6 {[%emt 0:00:00]} 75. Ka8 {[%emt 0:00:01]
} Kb5 {[%emt 0:00:00]} 76. Ka7 {[%emt 0:00:01] Enschede geeft op  (Lag: Av=0.
19s, max=0.6s)} 1-0

[Event "Dutch Internet Championship Final"]
[Site "playchess.com #038132"]
[Date "2011.06.18"]
[Round "1.1"]
[White "Jack Snipe"]
[Black "Rossetis"]
[Result "1/2-1/2"]
[ECO "C61"]
[WhiteElo "2456"]
[BlackElo "2476"]
[PlyCount "118"]
[EventDate "2011.06.18"]
[EventType "match (blitz)"]
[TimeControl "180+3"]

1. e4 {[%emt 0:00:01]} e5 {[%emt 0:00:01]} 2. Nf3 {[%emt 0:00:01]} Nc6 {[%emt
0:00:01]} 3. Bb5 {[%emt 0:00:01]} Nd4 {[%emt 0:00:01]} 4. Nxd4 {[%emt 0:00:02]}
exd4 {[%emt 0:00:01]} 5. O-O {[%emt 0:00:02]} c6 {[%emt 0:00:01]} 6. Bc4 {
[%emt 0:00:06]} d5 {[%emt 0:00:01]} 7. exd5 {[%emt 0:00:02]} cxd5 {[%emt 0:00:
01]} 8. Bb5+ {[%emt 0:00:05]} Bd7 {[%emt 0:00:01]} 9. Re1+ {[%emt 0:00:05]} Ne7
{[%emt 0:00:01]} 10. Bxd7+ {[%emt 0:00:14]} Qxd7 {[%emt 0:00:01]} 11. d3 {
[%emt 0:00:05]} O-O-O {[%emt 0:00:09]} 12. c3 {[%emt 0:00:06]} Nc6 {[%emt 0:00:
12]} 13. cxd4 {[%emt 0:00:21]} Nxd4 {[%emt 0:00:02]} 14. Nc3 {[%emt 0:00:00]}
Kb8 {[%emt 0:00:30]} 15. Bf4+ {[%emt 0:00:14]} Ka8 {[%emt 0:00:08]} 16. Rc1 {
[%emt 0:00:13]} Ne6 {[%emt 0:00:04]} 17. Bg3 {[%emt 0:00:03]} Bc5 {[%emt 0:00:
06]} 18. Qa4 {[%emt 0:00:42]} Qxa4 {[%emt 0:00:06]} 19. Nxa4 {[%emt 0:00:00]}
Bd4 {[%emt 0:00:01]} 20. Be5 {[%emt 0:00:06]} Rhe8 {[%emt 0:00:10]} 21. Nc3 {
[%emt 0:00:04]} Bxe5 {[%emt 0:00:17]} 22. Rxe5 {[%emt 0:00:00]} Nf4 {[%emt 0:
00:03]} 23. Rxe8 {[%emt 0:00:26]} Rxe8 {[%emt 0:00:02]} 24. Rd1 {[%emt 0:00:04]
} Kb8 {[%emt 0:00:37]} 25. g3 {[%emt 0:00:14]} Ne2+ {[%emt 0:00:02]} 26. Kf1 {
[%emt 0:00:02]} Nxc3 {[%emt 0:00:02]} 27. bxc3 {[%emt 0:00:00]} Kc7 {[%emt 0:
00:13]} 28. Rb1 {[%emt 0:00:09]} Re6 {[%emt 0:00:04]} 29. Rb5 {[%emt 0:00:06]}
Rc6 {[%emt 0:00:10]} 30. Rb3 {[%emt 0:00:03]} a5 {[%emt 0:00:05]} 31. Ke2 {
[%emt 0:00:14]} a4 {[%emt 0:00:03]} 32. Rb4 {[%emt 0:00:01]} Rxc3 {[%emt 0:00:
04]} 33. Rxa4 {[%emt 0:00:01]} Rc2+ {[%emt 0:00:12]} 34. Ke3 {[%emt 0:00:01]}
Kd6 {[%emt 0:00:01]} 35. Rb4 {[%emt 0:00:09]} Kc6 {[%emt 0:00:06]} 36. a4 {
[%emt 0:00:07]} b6 {[%emt 0:00:03]} 37. Rf4 {[%emt 0:00:04]} f6 {[%emt 0:00:04]
} 38. h4 {[%emt 0:00:07]} Ra2 {[%emt 0:00:03]} 39. h5 {[%emt 0:00:02]} Kd6 {
[%emt 0:00:03]} 40. h6 {[%emt 0:00:07]} gxh6 {[%emt 0:00:05]} 41. Rxf6+ {[%emt
0:00:01]} Kc7 {[%emt 0:00:05]} 42. Kd4 {[%emt 0:00:12]} Rxa4+ {[%emt 0:00:05]}
43. Kxd5 {[%emt 0:00:01]} Ra5+ {[%emt 0:00:01]} 44. Kc4 {[%emt 0:00:06]} Rh5 {
[%emt 0:00:03]} 45. d4 {[%emt 0:00:03]} Kb7 {[%emt 0:00:07]} 46. Rf7+ {[%emt 0:
00:02]} Kc6 {[%emt 0:00:03]} 47. Rxh7 {[%emt 0:00:04]} b5+ {[%emt 0:00:04]} 48.
Kd3 {[%emt 0:00:02]} Kd5 {[%emt 0:00:14]} 49. g4 {[%emt 0:00:13]} Rh3+ {[%emt
0:00:03]} 50. Ke2 {[%emt 0:00:01]} Kxd4 {[%emt 0:00:10]} 51. g5 {[%emt 0:00:01]
} Ke5 {[%emt 0:00:06]} 52. Rxh6 {[%emt 0:00:12]} Rxh6 {[%emt 0:00:10]} 53. gxh6
{[%emt 0:00:00]} Kf6 {[%emt 0:00:01]} 54. Kd3 {[%emt 0:00:02]} Kg6 {[%emt 0:00:
01]} 55. Kc3 {[%emt 0:00:01]} Kxh6 {[%emt 0:00:01]} 56. Kb4 {[%emt 0:00:01]}
Kg5 {[%emt 0:00:00]} 57. Kxb5 {[%emt 0:00:00]} Kf4 {[%emt 0:00:00]} 58. Kc4 {
[%emt 0:00:01]} Kf3 {[%emt 0:00:00]} 59. Kd4 {[%emt 0:00:01]} Kxf2 {[%emt 0:00:
01] (Lag: Av=0.19s, max=0.7s)} 1/2-1/2